[Event "6e Open International d'Echecs des Sable"]
[Site "Sables d'Olonne, France"]
[Date "2019.07.13"]
[Round "1.1"]
[White "Prie, Eric"]
[Black "Frick, Christoph"]
[Result "1-0"]
[ECO "B06"]
[WhiteElo "2436"]
[BlackElo "2134"]
[Annotator "jeanluc"]
[PlyCount "78"]
[EventDate "2019.??.??"]
[TimeControl "1/40:0"]
[WhiteClock "0:03:40"]
[BlackClock "0:02:43"]

1. d4 {[%emt 0:00:00]} g6 {[%emt 0:00:00]} 2. e4 {[%emt 0:00:00]} Bg7 {[%emt 0:
00:00]} 3. Nc3 {[%emt 0:00:00]} d6 {[%emt 0:00:00]} 4. Be3 {[%emt 0:00:00]} a6
{[%emt 0:00:00]} 5. h4 {[%emt 0:00:00]} Nf6 {[%emt 0:00:00]} 6. h5 {[%emt 0:00:
00]} gxh5 {[%emt 0:00:00]} 7. f3 {[%emt 0:00:00]} Nc6 {[%emt 0:00:00]} 8. Nge2
{[%emt 0:00:00]} e5 {[%emt 0:00:00]} 9. dxe5 {[%emt 0:00:00]} Nxe5 {[%emt 0:00:
00]} 10. Ng3 {[%emt 0:00:00]} h4 {[%emt 0:00:00]} 11. Rxh4 {[%emt 0:00:00]} Be6
{[%emt 0:00:00]} 12. Qd2 {[%emt 0:00:00]} h5 {[%emt 0:00:00]} 13. Bg5 {[%emt 0:
00:00]} Qd7 {[%emt 0:00:00]} 14. f4 {[%emt 0:00:00]} Ng6 {[%emt 0:00:00]} 15.
f5 {[%emt 0:00:00]} Nxh4 {[%emt 0:00:00]} 16. Bxh4 {[%emt 0:00:00]} O-O-O {
[%emt 0:00:00]} 17. O-O-O {[%emt 0:00:00]} Rdg8 {[%emt 0:00:01]} 18. Kb1 {
[%emt 0:00:00]} Ng4 {[%emt 0:01:14]} 19. fxe6 {[%emt 0:00:00]} fxe6 {[%emt 0:
00:15]} 20. Be2 {[%emt 0:00:00]} Be5 {[%emt 0:01:51]} 21. Bf3 {[%emt 0:00:00]}
Qc6 {[%emt 0:01:36]} 22. Nce2 {[%emt 0:00:00]} Nf2 {[%emt 0:07:05]} 23. Rf1 {
[%emt 0:00:00]} Qb6 {[%emt 0:00:16]} 24. c3 {[%emt 0:00:00]} Ng4 {[%emt 0:00:
20]} 25. Rh1 {[%emt 0:04:21]} Ne3 {[%emt 0:00:56]} 26. Qd3 {[%emt 0:01:59]} Ng4
{[%emt 0:00:20]} 27. Re1 {[%emt 0:01:01]} Kb8 {[%emt 0:00:44]} 28. Nf1 {
[%emt 0:02:05]} Rh7 {[%emt 0:00:36]} 29. Nd4 {[%emt 0:00:59]} Rg6 {[%emt 0:00:
51]} 30. Nd2 {[%emt 0:04:14]} Bh8 {[%emt 0:00:27]} 31. e5 {[%emt 0:01:10]} Rhh6
{[%emt 0:01:22]} 32. Nc4 {[%emt 0:00:56]} Qc5 {[%emt 0:00:32]} 33. b4 {[%emt 0:
00:25]} Qa7 {[%emt 0:00:14]} 34. exd6 {[%emt 0:00:27]} cxd6 {[%emt 0:00:33]}
35. Nxd6 {[%emt 0:00:36]} e5 {[%emt 0:00:23]} 36. N4f5 {[%emt 0:00:18]} Nf2 {
[%emt 0:01:05]} 37. Qe2 {[%emt 0:02:02]} Ng4 {[%emt 0:01:18]} 38. Nxh6 {
[%emt 0:00:57]} Nxh6 {[%emt 0:00:40]} 39. Nxb7 {[%emt 0:00:50]} Nf5 {[%emt 0:
00:38]} 1-0

[Event "6e Open International d'Echecs des Sable"]
[Site "Sables d'Olonne, France"]
[Date "2019.07.13"]
[Round "1.2"]
[White "Wlodarczyk, Cyril"]
[Black "Duboue, Peio"]
[Result "0-1"]
[ECO "C29"]
[WhiteElo "2098"]
[BlackElo "2409"]
[Annotator "jeanluc"]
[PlyCount "70"]
[EventDate "2019.??.??"]
[TimeControl "1/40:0"]
[WhiteClock "0:16:50"]
[BlackClock "0:28:41"]

1. e4 {[%emt 0:00:00]} e5 {[%emt 0:00:00]} 2. Nc3 {[%emt 0:00:00]} Nf6 {
[%emt 0:00:00]} 3. f4 {[%emt 0:00:00]} d5 {[%emt 0:00:00]} 4. fxe5 {[%emt 0:00:
00]} Nxe4 {[%emt 0:00:00]} 5. Qf3 {[%emt 0:00:00]} Nxc3 {[%emt 0:00:00]} 6.
dxc3 {[%emt 0:00:00]} c5 {[%emt 0:00:00]} 7. Qg3 {[%emt 0:00:00]} Nc6 {[%emt 0:
00:00]} 8. Nf3 {[%emt 0:00:00]} Qb6 {[%emt 0:00:00]} 9. Be2 {[%emt 0:00:00]} c4
{[%emt 0:00:00]} 10. Qf4 {[%emt 0:00:00]} Bc5 {[%emt 0:00:00]} 11. Rf1 {
[%emt 0:00:00]} Be6 {[%emt 0:00:00]} 12. b4 {[%emt 0:00:00]} cxb3 {[%emt 0:00:
00]} 13. axb3 {[%emt 0:00:00]} O-O {[%emt 0:00:00]} 14. Bd3 {[%emt 0:00:00]} f6
{[%emt 0:00:00]} 15. Qh4 {[%emt 0:00:00]} g6 {[%emt 0:00:00]} 16. exf6 {
[%emt 0:00:00]} Rae8 {[%emt 0:00:00]} 17. Kd1 {[%emt 0:00:00]} Qc7 {[%emt 0:00:
00]} 18. Bf4 {[%emt 0:00:00]} Qd7 {[%emt 0:00:00]} 19. Bh6 {[%emt 0:00:00]} Rf7
{[%emt 0:00:00]} 20. Ng5 {[%emt 0:00:00]} Be3 {[%emt 0:00:00]} 21. h3 {[%emt 0:
00:00]} Bxg5 {[%emt 0:00:00]} 22. Qxg5 {[%emt 0:00:00]} Ne5 {[%emt 0:00:00]}
23. Kd2 {[%emt 0:00:00]} Nxd3 {[%emt 0:00:00]} 24. cxd3 {[%emt 0:00:00]} Qb5 {
[%emt 0:00:00]} 25. Rf4 {[%emt 0:00:00]} a5 {[%emt 0:00:00]} 26. Kc2 {[%emt 0:
00:00]} Bf5 {[%emt 0:00:00]} 27. Rf2 {[%emt 0:00:00]} a4 {[%emt 0:00:00]} 28.
Rxa4 {[%emt 0:00:00]} Qxd3+ {[%emt 0:00:00]} 29. Kb2 {[%emt 0:00:00]} Qb1+ {
[%emt 0:00:00]} 30. Ka3 {[%emt 0:00:00]} b5 {[%emt 0:00:00]} 31. Qe3 {[%emt 0:
01:32]} Bd7 {[%emt 0:00:00]} 32. Qxe8+ {[%emt 0:03:31]} Bxe8 {[%emt 0:00:00]}
33. Re2 {[%emt 0:00:18]} b4+ {[%emt 0:00:00]} 34. Rxb4 {[%emt 0:00:54]} Qa1+ {
[%emt 0:00:00]} 35. Ra2 {[%emt 0:00:15]} Ra7+ {[%emt 0:00:00]} 0-1

[Event "6e Open International d'Echecs des Sable"]
[Site "Sables d'Olonne, France"]
[Date "2019.07.13"]
[Round "1.3"]
[White "Colin, Vincent"]
[Black "Renault, Jerome"]
[Result "1-0"]
[ECO "B37"]
[WhiteElo "2370"]
[BlackElo "2097"]
[Annotator "jeanluc"]
[PlyCount "83"]
[EventDate "2019.??.??"]
[TimeControl "1/40:0"]
[WhiteClock "0:24:39"]
[BlackClock "0:01:51"]

1. Nf3 {[%emt 0:00:00]} Nf6 {[%emt 0:00:00]} 2. c4 {[%emt 0:00:00]} c5 {
[%emt 0:00:00]} 3. Nc3 {[%emt 0:00:00]} Nc6 {[%emt 0:00:00]} 4. d4 {[%emt 0:00:
00]} cxd4 {[%emt 0:00:00]} 5. Nxd4 {[%emt 0:00:00]} g6 {[%emt 0:00:00]} 6. e4 {
[%emt 0:00:00]} d6 {[%emt 0:00:00]} 7. Nc2 {[%emt 0:00:00]} Bg7 {[%emt 0:00:00]
} 8. Be2 {[%emt 0:00:00]} O-O {[%emt 0:00:00]} 9. Be3 {[%emt 0:00:00]} b6 {
[%emt 0:00:00]} 10. Qd2 {[%emt 0:00:00]} h5 {[%emt 0:00:00]} 11. f3 {[%emt 0:
00:00]} Be6 {[%emt 0:00:00]} 12. O-O {[%emt 0:00:00]} Kh7 {[%emt 0:00:00]} 13.
Rac1 {[%emt 0:00:00]} Ne5 {[%emt 0:00:00]} 14. b3 {[%emt 0:00:00]} Rc8 {
[%emt 0:00:00]} 15. h3 {[%emt 0:00:00]} Nc6 {[%emt 0:00:00]} 16. f4 {[%emt 0:
00:00]} Bd7 {[%emt 0:00:00]} 17. Ne1 {[%emt 0:00:00]} Ra8 {[%emt 0:00:00]} 18.
Nf3 {[%emt 0:00:00]} Qc8 {[%emt 0:00:00]} 19. Bd3 {[%emt 0:00:00]} Kh8 {
[%emt 0:00:00]} 20. Bb1 {[%emt 0:00:00]} Ne8 {[%emt 0:00:00]} 21. Qf2 {[%emt 0:
00:00]} e5 {[%emt 0:04:19]} 22. f5 {[%emt 0:00:00]} Ne7 {[%emt 0:00:51]} 23.
fxg6 {[%emt 0:00:00]} fxg6 {[%emt 0:00:31]} 24. Qg3 {[%emt 0:00:00]} Be6 {
[%emt 0:01:55]} 25. Nh4 {[%emt 0:00:00]} Bf7 {[%emt 0:02:18]} 26. Nd5 {[%emt 0:
00:00]} Qe6 {[%emt 0:01:43]} 27. Nxe7 {[%emt 0:00:00]} Qxe7 {[%emt 0:00:16]}
28. Rxf7 {[%emt 0:00:00]} Qxf7 {[%emt 0:00:40]} 29. Nxg6+ {[%emt 0:00:00]} Kh7
{[%emt 0:00:54]} 30. Nxf8+ {[%emt 0:00:00]} Bxf8 {[%emt 0:00:46]} 31. Rf1 {
[%emt 0:00:00]} Nf6 {[%emt 0:00:30]} 32. Qg5 {[%emt 0:00:00]} Bg7 {[%emt 0:01:
03]} 33. Bd3 {[%emt 0:00:00]} Rg8 {[%emt 0:02:32]} 34. c5 {[%emt 0:00:00]} dxc5
{[%emt 0:02:13]} 35. Bc4 {[%emt 0:00:00]} Qe7 {[%emt 0:01:06]} 36. Rxf6 {
[%emt 0:01:02]} Qxf6 {[%emt 0:00:21]} 37. Qxh5+ {[%emt 0:00:16]} Bh6 {[%emt 0:
00:23]} 38. Bxg8+ {[%emt 0:00:22]} Kxg8 {[%emt 0:00:26]} 39. Qxh6 {[%emt 0:00:
23]} Qd8 {[%emt 0:01:23]} 40. Qg6+ {[%emt 0:00:26]} Kh8 {[%emt 0:00:49]} 41.
Bg5 {[%emt 0:00:23]} Qd1+ {[%emt 0:00:30]} 42. Kh2 {[%emt 0:00:29]} 1-0

[Event "6e Open International d'Echecs des Sable"]
[Site "Sables d'Olonne, France"]
[Date "2019.07.13"]
[Round "1.4"]
[White "Le Pen, Steven"]
[Black "Vidal, Llewellyn"]
[Result "0-1"]
[ECO "B32"]
[WhiteElo "2094"]
[BlackElo "2336"]
[Annotator "jeanluc"]
[PlyCount "82"]
[EventDate "2019.??.??"]
[TimeControl "1/40:0"]
[WhiteClock "0:28:17"]
[BlackClock "0:30:54"]

1. e4 {[%emt 0:00:00]} c5 {[%emt 0:00:00]} 2. Nf3 {[%emt 0:00:00]} Nc6 {
[%emt 0:00:00]} 3. d4 {[%emt 0:00:00]} cxd4 {[%emt 0:00:00]} 4. Nxd4 {[%emt 0:
00:00]} e5 {[%emt 0:00:00]} 5. Nb5 {[%emt 0:00:00]} d6 {[%emt 0:00:00]} 6. Be3
{[%emt 0:00:00]} Be7 {[%emt 0:00:00]} 7. N1c3 {[%emt 0:00:00]} a6 {[%emt 0:00:
00]} 8. Nd5 {[%emt 0:00:00]} Rb8 {[%emt 0:00:00]} 9. Bb6 {[%emt 0:00:00]} Qd7 {
[%emt 0:00:00]} 10. Nbc7+ {[%emt 0:00:00]} Kf8 {[%emt 0:00:00]} 11. Qd2 {
[%emt 0:00:00]} Bd8 {[%emt 0:00:00]} 12. O-O-O {[%emt 0:00:00]} h5 {[%emt 0:00:
00]} 13. f4 {[%emt 0:00:00]} exf4 {[%emt 0:00:00]} 14. Qxf4 {[%emt 0:00:00]}
Ne5 {[%emt 0:00:00]} 15. Bc5 {[%emt 0:00:00]} Ne7 {[%emt 0:00:00]} 16. Nb6 {
[%emt 0:00:00]} Qg4 {[%emt 0:00:00]} 17. Qd2 {[%emt 0:00:00]} Bxc7 {[%emt 0:00:
00]} 18. Bxd6 {[%emt 0:00:00]} Bxb6 {[%emt 0:00:00]} 19. Bxb8 {[%emt 0:00:00]}
N5c6 {[%emt 0:00:00]} 20. Bd6 {[%emt 0:01:03]} Qxe4 {[%emt 0:00:00]} 21. Bc5 {
[%emt 0:02:51]} Bc7 {[%emt 0:00:00]} 22. Bd6 {[%emt 0:05:53]} Ba5 {[%emt 0:00:
00]} 23. b4 {[%emt 0:01:02]} Bb6 {[%emt 0:00:00]} 24. Bc5 {[%emt 0:01:25]} Bc7
{[%emt 0:00:00]} 25. Bd6 {[%emt 0:01:51]} Bxd6 {[%emt 0:00:00]} 26. Qxd6 {
[%emt 0:00:11]} Kg8 {[%emt 0:00:22]} 27. b5 {[%emt 0:02:09]} axb5 {[%emt 0:06:
36]} 28. Bxb5 {[%emt 0:00:30]} Qe3+ {[%emt 0:02:47]} 29. Kb2 {[%emt 0:01:14]}
Qb6 {[%emt 0:01:04]} 30. a4 {[%emt 0:00:23]} Rh6 {[%emt 0:00:45]} 31. Qf4 {
[%emt 0:00:37]} Rf6 {[%emt 0:00:28]} 32. Qh4 {[%emt 0:00:57]} Bg4 {[%emt 0:05:
56]} 33. Rd3 {[%emt 0:01:03]} Nf5 {[%emt 0:01:03]} 34. Qe1 {[%emt 0:00:29]}
Nfd4 {[%emt 0:00:59]} 35. Qe8+ {[%emt 0:00:58]} Kh7 {[%emt 0:00:11]} 36. Qe3 {
[%emt 0:00:38]} Re6 {[%emt 0:00:39]} 37. Qg5 {[%emt 0:00:54]} Re5 {[%emt 0:00:
37]} 38. Qf4 {[%emt 0:00:26]} Nxb5 {[%emt 0:02:53]} 39. axb5 {[%emt 0:00:23]}
Rxb5+ {[%emt 0:00:37]} 40. Rb3 {[%emt 0:00:11]} Nd4 {[%emt 0:00:58]} 41. Rxb5 {
[%emt 0:00:00]} Qxb5+ {[%emt 0:00:00]} 0-1

[Event "6e Open International d'Echecs des Sable"]
[Site "Sables d'Olonne, France"]
[Date "2019.07.13"]
[Round "1.5"]
[White "Bujisho, Benjamin"]
[Black "Julien, Jules-Alois"]
[Result "1-0"]
[ECO "D00"]
[WhiteElo "2326"]
[BlackElo "2093"]
[Annotator "jeanluc"]
[PlyCount "107"]
[EventDate "2019.??.??"]
[TimeControl "1/40:0"]
[WhiteClock "0:17:25"]
[BlackClock "0:09:10"]

1. d4 {[%emt 0:00:00]} Nf6 {[%emt 0:00:00]} 2. Nf3 {[%emt 0:00:00]} g6 {
[%emt 0:00:00]} 3. Nc3 {[%emt 0:00:00]} d5 {[%emt 0:00:00]} 4. Bf4 {[%emt 0:00:
00]} Bg7 {[%emt 0:00:00]} 5. Nb5 {[%emt 0:00:00]} Na6 {[%emt 0:00:00]} 6. e3 {
[%emt 0:00:00]} O-O {[%emt 0:00:00]} 7. Be2 {[%emt 0:00:00]} c6 {[%emt 0:00:00]
} 8. Nc3 {[%emt 0:00:00]} Qa5 {[%emt 0:00:00]} 9. O-O {[%emt 0:00:00]} Nb8 {
[%emt 0:00:00]} 10. a3 {[%emt 0:00:00]} Bf5 {[%emt 0:00:00]} 11. h3 {[%emt 0:
00:00]} h6 {[%emt 0:00:00]} 12. Bd3 {[%emt 0:00:00]} Bxd3 {[%emt 0:00:00]} 13.
cxd3 {[%emt 0:00:00]} Nbd7 {[%emt 0:00:00]} 14. b4 {[%emt 0:00:00]} Qd8 {
[%emt 0:00:00]} 15. Bh2 {[%emt 0:00:00]} e6 {[%emt 0:00:00]} 16. Qb3 {[%emt 0:
00:00]} Qe7 {[%emt 0:00:00]} 17. Rac1 {[%emt 0:00:00]} a6 {[%emt 0:00:00]} 18.
Na4 {[%emt 0:00:00]} Rfc8 {[%emt 0:00:00]} 19. Rc2 {[%emt 0:00:00]} Kh7 {
[%emt 0:00:00]} 20. Rfc1 {[%emt 0:00:00]} Ne8 {[%emt 0:00:00]} 21. Nc5 {
[%emt 0:00:00]} Nf8 {[%emt 0:00:00]} 22. Qb1 {[%emt 0:00:00]} f6 {[%emt 0:00:
00]} 23. Nb3 {[%emt 0:00:00]} e5 {[%emt 0:00:00]} 24. dxe5 {[%emt 0:00:00]}
fxe5 {[%emt 0:00:00]} 25. e4 {[%emt 0:00:00]} dxe4 {[%emt 0:00:00]} 26. dxe4 {
[%emt 0:00:00]} Nd6 {[%emt 0:00:00]} 27. Re2 {[%emt 0:00:00]} Nd7 {[%emt 0:00:
00]} 28. Nc5 {[%emt 0:00:00]} Nb6 {[%emt 0:00:54]} 29. Qb3 {[%emt 0:00:00]} Rf8
{[%emt 0:01:08]} 30. Bg3 {[%emt 0:00:00]} Rae8 {[%emt 0:06:21]} 31. a4 {
[%emt 0:00:00]} Qf7 {[%emt 0:01:08]} 32. Qxf7 {[%emt 0:00:00]} Rxf7 {[%emt 0:
00:15]} 33. Rd1 {[%emt 0:00:00]} Ndc4 {[%emt 0:01:01]} 34. Rc2 {[%emt 0:00:26]}
a5 {[%emt 0:00:22]} 35. bxa5 {[%emt 0:00:55]} Nxa5 {[%emt 0:00:15]} 36. Nd2 {
[%emt 0:01:22]} Rd8 {[%emt 0:04:22]} 37. Rb1 {[%emt 0:00:23]} Nc8 {[%emt 0:00:
47]} 38. Ndb3 {[%emt 0:03:05]} Nxb3 {[%emt 0:02:20]} 39. Rxb3 {[%emt 0:00:39]}
Rd1+ {[%emt 0:00:20]} 40. Kh2 {[%emt 0:00:12]} Nd6 {[%emt 0:00:16]} 41. f3 {
[%emt 0:01:03]} Bf6 {[%emt 0:00:00]} 42. Rd3 {[%emt 0:00:00]} Rxd3 {[%emt 0:00:
00]} 43. Nxd3 {[%emt 0:00:00]} Re7 {[%emt 0:00:00]} 44. a5 {[%emt 0:00:00]} h5
{[%emt 0:00:00]} 45. h4 {[%emt 0:00:00]} Nb5 {[%emt 0:00:00]} 46. a6 {[%emt 0:
00:00]} Nd4 {[%emt 0:00:00]} 47. axb7 {[%emt 0:00:29]} Rxb7 {[%emt 0:00:00]}
48. Rc4 {[%emt 0:01:55]} c5 {[%emt 0:02:37]} 49. Rxc5 {[%emt 0:01:37]} Rb3 {
[%emt 0:01:03]} 50. Bxe5 {[%emt 0:02:06]} Bxh4 {[%emt 0:00:20]} 51. Rc7+ {
[%emt 0:00:52]} Kg8 {[%emt 0:01:32]} 52. Nf4 {[%emt 0:01:32]} Rxf3 {[%emt 0:00:
53]} 53. Rg7+ {[%emt 0:01:19]} Kf8 {[%emt 0:00:16]} 54. Nxg6+ {[%emt 0:00:26]}
1-0

[Event "6e Open International d'Echecs des Sable"]
[Site "Sables d'Olonne, France"]
[Date "2019.07.13"]
[Round "1.6"]
[White "Maleki, Nicolas"]
[Black "Eugene, Floryan"]
[Result "0-1"]
[ECO "E61"]
[WhiteElo "2088"]
[BlackElo "2300"]
[Annotator "jeanluc"]
[PlyCount "60"]
[EventDate "2019.??.??"]
[TimeControl "1/40:0"]
[WhiteClock "0:00:34"]
[BlackClock "0:10:52"]

1. d4 {[%emt 0:00:00]} Nf6 {[%emt 0:00:00]} 2. Nf3 {[%emt 0:00:00]} g6 {
[%emt 0:00:00]} 3. c4 {[%emt 0:00:00]} Bg7 {[%emt 0:00:00]} 4. Nc3 {[%emt 0:00:
00]} O-O {[%emt 0:00:00]} 5. Bg5 {[%emt 0:00:00]} c5 {[%emt 0:00:00]} 6. e3 {
[%emt 0:00:00]} cxd4 {[%emt 0:00:00]} 7. Qxd4 {[%emt 0:00:00]} Nc6 {[%emt 0:00:
00]} 8. Qd2 {[%emt 0:00:00]} d6 {[%emt 0:00:00]} 9. Be2 {[%emt 0:00:00]} Bf5 {
[%emt 0:00:00]} 10. O-O {[%emt 0:00:00]} Ne4 {[%emt 0:00:00]} 11. Nxe4 {
[%emt 0:00:00]} Bxe4 {[%emt 0:00:00]} 12. Rac1 {[%emt 0:00:00]} Qb6 {[%emt 0:
00:00]} 13. b3 {[%emt 0:00:00]} h6 {[%emt 0:00:00]} 14. Bh4 {[%emt 0:00:00]} g5
{[%emt 0:00:00]} 15. Bg3 {[%emt 0:00:00]} Qb4 {[%emt 0:00:00]} 16. Rfd1 {
[%emt 0:00:00]} f5 {[%emt 0:00:00]} 17. Ne1 {[%emt 0:00:00]} f4 {[%emt 0:00:00]
} 18. exf4 {[%emt 0:00:00]} Qxd2 {[%emt 0:00:00]} 19. Rxd2 {[%emt 0:00:00]}
gxf4 {[%emt 0:00:00]} 20. Bh4 {[%emt 0:00:00]} Bf6 {[%emt 0:00:00]} 21. Bxf6 {
[%emt 0:00:00]} Rxf6 {[%emt 0:00:00]} 22. f3 {[%emt 0:00:00]} Bg6 {[%emt 0:00:
00]} 23. c5 {[%emt 0:00:00]} Rd8 {[%emt 0:03:25]} 24. Bc4+ {[%emt 0:00:00]} Kg7
{[%emt 0:01:37]} 25. Rcd1 {[%emt 0:00:00]} b6 {[%emt 0:02:40]} 26. cxd6 {
[%emt 0:06:40]} e5 {[%emt 0:00:19]} 27. Re2 {[%emt 0:10:05]} Rfxd6 {[%emt 0:00:
23]} 28. Rxd6 {[%emt 0:00:33]} Rxd6 {[%emt 0:00:13]} 29. Bb5 {[%emt 0:01:28]}
Nd4 {[%emt 0:00:19]} 30. Rxe5 {[%emt 0:00:40]} Kf6 {[%emt 0:00:12]} 0-1

[Event "6e Open International d'Echecs des Sable"]
[Site "Sables d'Olonne, France"]
[Date "2019.07.13"]
[Round "1.7"]
[White "Cotonnec, Melkior"]
[Black "Picart, Laurent"]
[Result "0-1"]
[ECO "A00"]
[WhiteElo "2293"]
[BlackElo "2061"]
[Annotator "jeanluc"]
[PlyCount "76"]
[EventDate "2019.??.??"]
[TimeControl "1/40:0"]
[WhiteClock "0:00:32"]
[BlackClock "0:03:19"]

1. b4 {[%emt 0:00:00]} e5 {[%emt 0:00:00]} 2. Bb2 {[%emt 0:00:00]} Bxb4 {
[%emt 0:00:00]} 3. Bxe5 {[%emt 0:00:00]} Nf6 {[%emt 0:00:00]} 4. Nf3 {[%emt 0:
00:00]} O-O {[%emt 0:00:00]} 5. c4 {[%emt 0:00:00]} Nc6 {[%emt 0:00:00]} 6. Bb2
{[%emt 0:00:00]} d5 {[%emt 0:00:00]} 7. e3 {[%emt 0:00:00]} Bg4 {[%emt 0:00:00]
} 8. cxd5 {[%emt 0:00:00]} Nxd5 {[%emt 0:00:00]} 9. Be2 {[%emt 0:00:00]} Re8 {
[%emt 0:00:00]} 10. O-O {[%emt 0:00:00]} Qd7 {[%emt 0:00:00]} 11. a3 {[%emt 0:
00:00]} Bf8 {[%emt 0:00:00]} 12. Nc3 {[%emt 0:00:00]} Rad8 {[%emt 0:00:00]} 13.
Qc2 {[%emt 0:00:00]} Nb6 {[%emt 0:00:00]} 14. Rfd1 {[%emt 0:00:00]} Na5 {
[%emt 0:00:00]} 15. d3 {[%emt 0:00:00]} c5 {[%emt 0:00:00]} 16. Rab1 {[%emt 0:
00:00]} Bf5 {[%emt 0:00:00]} 17. Ba1 {[%emt 0:00:00]} h6 {[%emt 0:00:00]} 18.
Nb5 {[%emt 0:00:00]} a6 {[%emt 0:00:00]} 19. Nc3 {[%emt 0:00:00]} Qc7 {[%emt 0:
00:00]} 20. Qb2 {[%emt 0:00:00]} Nc8 {[%emt 0:00:00]} 21. e4 {[%emt 0:00:00]}
Be6 {[%emt 0:00:00]} 22. d4 {[%emt 0:00:00]} Bb3 {[%emt 0:00:00]} 23. Rd2 {
[%emt 0:00:00]} b5 {[%emt 0:00:00]} 24. Rc1 {[%emt 0:06:56]} Nd6 {[%emt 0:00:
00]} 25. Qb1 {[%emt 0:05:09]} Ndc4 {[%emt 0:01:55]} 26. Bxc4 {[%emt 0:02:36]}
Bxc4 {[%emt 0:00:38]} 27. Rcc2 {[%emt 0:01:10]} Nb3 {[%emt 0:01:58]} 28. d5 {
[%emt 0:01:55]} Nxd2 {[%emt 0:00:50]} 29. Rxd2 {[%emt 0:00:11]} b4 {[%emt 0:02:
28]} 30. Nd1 {[%emt 0:00:35]} a5 {[%emt 0:00:40]} 31. Ne3 {[%emt 0:01:19]} Bb5
{[%emt 0:00:36]} 32. e5 {[%emt 0:00:46]} Qb7 {[%emt 0:04:26]} 33. Qe4 {[%emt 0:
00:49]} Qa6 {[%emt 0:01:31]} 34. Nh4 {[%emt 0:00:37]} c4 {[%emt 0:01:02]} 35.
Nef5 {[%emt 0:00:46]} c3 {[%emt 0:01:05]} 36. Rd4 {[%emt 0:00:11]} Rc8 {
[%emt 0:02:14]} 37. e6 {[%emt 0:01:05]} fxe6 {[%emt 0:01:13]} 38. Nxh6+ {
[%emt 0:00:43]} gxh6 {[%emt 0:01:25]} 0-1

[Event "6e Open International d'Echecs des Sable"]
[Site "Sables d'Olonne, France"]
[Date "2019.07.14"]
[Round "2.1"]
[White "Dalaud, Dorian"]
[Black "Prie, Eric"]
[Result "0-1"]
[ECO "A25"]
[WhiteElo "2220"]
[BlackElo "2436"]
[Annotator "jeanluc"]
[PlyCount "112"]
[EventDate "2019.??.??"]
[TimeControl "1/40:0"]
[WhiteClock "0:04:35"]
[BlackClock "0:05:12"]

1. c4 {[%emt 0:00:00]} e5 {[%emt 0:00:00]} 2. g3 {[%emt 0:00:00]} Nf6 {[%emt 0:
00:00]} 3. Bg2 {[%emt 0:00:00]} Bc5 {[%emt 0:00:00]} 4. Nc3 {[%emt 0:00:00]}
O-O {[%emt 0:00:00]} 5. e3 {[%emt 0:00:00]} Re8 {[%emt 0:00:00]} 6. Nge2 {
[%emt 0:00:00]} Nc6 {[%emt 0:00:00]} 7. O-O {[%emt 0:00:00]} a6 {[%emt 0:00:00]
} 8. a3 {[%emt 0:00:00]} d6 {[%emt 0:00:00]} 9. b4 {[%emt 0:00:00]} Ba7 {
[%emt 0:00:00]} 10. Qc2 {[%emt 0:00:00]} Bd7 {[%emt 0:00:00]} 11. Bb2 {[%emt 0:
00:00]} Rb8 {[%emt 0:00:00]} 12. Rac1 {[%emt 0:00:00]} Ne7 {[%emt 0:00:00]} 13.
Nd5 {[%emt 0:00:00]} Nexd5 {[%emt 0:00:00]} 14. cxd5 {[%emt 0:00:00]} Rc8 {
[%emt 0:00:00]} 15. f4 {[%emt 0:00:00]} Bb5 {[%emt 0:00:00]} 16. Rce1 {[%emt 0:
00:00]} c6 {[%emt 0:00:00]} 17. fxe5 {[%emt 0:00:00]} dxe5 {[%emt 0:00:00]} 18.
Qf5 {[%emt 0:00:00]} Qe7 {[%emt 0:00:00]} 19. dxc6 {[%emt 0:00:00]} Bxc6 {
[%emt 0:00:00]} 20. Rc1 {[%emt 0:00:00]} Bd7 {[%emt 0:00:00]} 21. Qg5 {[%emt 0:
00:00]} h6 {[%emt 0:00:00]} 22. Qh4 {[%emt 0:00:00]} Bb5 {[%emt 0:00:00]} 23.
Bf3 {[%emt 0:00:00]} Rcd8 {[%emt 0:00:00]} 24. Bc3 {[%emt 0:00:00]} Nd5 {
[%emt 0:00:00]} 25. Bxd5 {[%emt 0:00:00]} Rxd5 {[%emt 0:00:00]} 26. Qe4 {
[%emt 0:00:00]} Qd7 {[%emt 0:03:15]} 27. Rf2 {[%emt 0:00:00]} Rxd2 {[%emt 0:03:
32]} 28. Bxd2 {[%emt 0:00:00]} Qxd2 {[%emt 0:00:21]} 29. Qxb7 {[%emt 0:09:48]}
Bxe3 {[%emt 0:00:28]} 30. Qxf7+ {[%emt 0:00:25]} Kh8 {[%emt 0:05:44]} 31. a4 {
[%emt 0:04:39]} Bxf2+ {[%emt 0:01:16]} 32. Qxf2 {[%emt 0:00:53]} Bxa4 {[%emt 0:
00:17]} 33. Re1 {[%emt 0:01:42]} Qxb4 {[%emt 0:00:28]} 34. Nc1 {[%emt 0:01:24]}
Bc6 {[%emt 0:02:21]} 35. Nd3 {[%emt 0:01:05]} Qb5 {[%emt 0:02:26]} 36. Qc5 {
[%emt 0:03:19]} e4 {[%emt 0:01:14]} 37. Qxb5 {[%emt 0:00:23]} Bxb5 {[%emt 0:00:
15]} 38. Nc5 {[%emt 0:01:08]} e3 {[%emt 0:00:19]} 39. Nb3 {[%emt 0:00:26]} Re4
{[%emt 0:02:09]} 40. Nc1 {[%emt 0:00:54]} g5 {[%emt 0:00:30]} 41. Ne2 {[%emt 0:
00:00]} Kg7 {[%emt 0:00:00]} 42. h3 {[%emt 0:00:00]} h5 {[%emt 0:00:00]} 43.
Kg2 {[%emt 0:00:00]} Bc6 {[%emt 0:00:00]} 44. Kg1 {[%emt 0:00:00]} Rc4 {
[%emt 0:00:00]} 45. h4 {[%emt 0:00:00]} gxh4 {[%emt 0:00:00]} 46. gxh4 {
[%emt 0:00:00]} Rg4+ {[%emt 0:00:00]} 47. Kh2 {[%emt 0:00:00]} Rxh4+ {[%emt 0:
00:00]} 48. Kg3 {[%emt 0:00:00]} Rg4+ {[%emt 0:00:00]} 49. Kh3 {[%emt 0:00:00]}
Re4 {[%emt 0:01:53]} 50. Kg3 {[%emt 0:00:00]} h4+ {[%emt 0:02:00]} 51. Kf3 {
[%emt 0:00:00]} Kf6 {[%emt 0:00:52]} 52. Rc1 {[%emt 0:03:27]} Rc4+ {[%emt 0:00:
40]} 53. Kxe3 {[%emt 0:00:12]} Rxc1 {[%emt 0:00:18]} 54. Nxc1 {[%emt 0:00:15]}
h3 {[%emt 0:01:11]} 55. Ne2 {[%emt 0:02:30]} h2 {[%emt 0:00:19]} 56. Ng3 {
[%emt 0:00:15]} Ke5 {[%emt 0:00:20]} 0-1